bitfinex/quotes_BTCUSD_20250115
["timestamp","ask_amount","ask_price","bid_price","bid_amount"]
[1736928455107,0.00073045,97493.0,97492.0,1.48929353]
[1736928455355,0.00073045,97493.0,97492.0,1.50529353]
[1736928455835,0.00073045,97493.0,97492.0,1.15810531]
[1736928456205,0.00073045,97493.0,97492.0,1.16510531]
[1736928456438,0.00073045,97493.0,97492.0,1.15610531]
[1736928456853,0.00073045,97493.0,97492.0,1.16510531]
[1736928457446,0.01682205,97493.0,97492.0,1.15810531]
[1736928457596,0.01682205,97493.0,97492.0,1.16510531]
[1736928458160,0.01682205,97493.0,97492.0,1.15810531]
[1736928458562,0.01682205,97493.0,97492.0,1.16510531]
[1736928459700,0.01682205,97493.0,97492.0,1.15934531]
[1736928459865,0.01682205,97493.0,97492.0,1.16510531]
[1736928460061,0.01682205,97493.0,97492.0,1.15934531]
[1736928460513,0.01682205,97493.0,97492.0,1.14334531]
[1736928460715,0.01682205,97493.0,97492.0,0.60574531]
[1736928460876,0.01682205,97493.0,97492.0,0.61474531]
[1736928461072,0.01682205,97493.0,97492.0,0.60574531]
[1736928461279,0.01682205,97493.0,97492.0,0.59874531]
[1736928461510,0.01682205,97493.0,97492.0,0.61374531]
[1736928461975,0.01682205,97493.0,97492.0,0.60774531]
[1736928462286,0.01682205,97493.0,97492.0,0.61374531]
[1736928462636,0.01682205,97493.0,97492.0,0.60474531]
[1736928462838,0.01682205,97493.0,97492.0,0.60653829]
[1736928463039,0.00073045,97493.0,97492.0,0.60653829]
[1736928463242,0.00173045,97493.0,97492.0,0.61553829]
[1736928464467,0.00073045,97493.0,97492.0,0.60053829]
[1736928464876,0.00073045,97493.0,97492.0,0.60653829]
[1736928465954,0.00173045,97493.0,97492.0,0.61553829]
[1736928466390,0.01782226,97493.0,97492.0,0.61553829]
[1736928470059,0.01782226,97493.0,97492.0,0.54013829]
[1736928470772,0.00173045,97493.0,97492.0,0.33499329]
[1736928470944,0.08253045,97493.0,97492.0,0.33499329]
[1736928471486,0.12943045,97493.0,97492.0,0.33499329]
[1736928472668,0.12843045,97493.0,97492.0,0.32599329]
[1736928472879,0.12843045,97493.0,97492.0,0.31999329]
[1736928473029,0.12943045,97493.0,97492.0,0.32899329]
[1736928473235,0.33457245,97493.0,97492.0,0.31438535]
[1736928473587,0.33557245,97493.0,97492.0,0.01079298]
[1736928473978,0.33557245,97493.0,97492.0,0.01479298]
[1736928474364,0.33357245,97493.0,97492.0,0.00179298]
[1736928474683,0.33357245,97493.0,97492.0,0.00979298]
[1736928476383,0.33357245,97493.0,97492.0,0.00379298]
[1736928476549,0.33357245,97493.0,97492.0,0.00179298]
[1736928476768,0.33357245,97493.0,97492.0,0.00979298]
[1736928477507,0.33357245,97493.0,97492.0,0.00179298]
[1736928477892,0.33357245,97493.0,97492.0,0.00679298]
[1736928483456,0.33357245,97493.0,97492.0,0.00579298]
[1736928483669,0.33357245,97493.0,97492.0,0.00179298]
[1736928483877,0.33357245,97493.0,97492.0,0.00679298]
[1736928486400,0.33357245,97493.0,97492.0,0.00579298]
[1736928486554,0.33357245,97493.0,97492.0,0.00279298]
[1736928487000,0.33357245,97493.0,97492.0,0.00579298]
[1736928488513,0.00073045,97493.0,97492.0,0.00579298]
[1736928488860,0.00073045,97493.0,97492.0,0.00479298]
[1736928489084,0.00073045,97493.0,97492.0,0.00579298]
[1736928489710,0.00073045,97493.0,97492.0,0.00279298]
[1736928489933,0.00073045,97493.0,97492.0,0.00379298]
[1736928490139,0.00073045,97493.0,97492.0,0.00579298]
[1736928490338,0.00073045,97493.0,97492.0,0.00379298]
[1736928490520,0.00073045,97493.0,97492.0,0.00979298]
[1736928490719,0.08183045,97493.0,97492.0,0.00979298]
[1736928491385,0.08183045,97493.0,97492.0,0.00379298]
[1736928491532,0.12703045,97493.0,97492.0,0.00679298]
[1736928491943,0.12703045,97493.0,97492.0,0.00479298]
[1736928492138,0.12703045,97493.0,97492.0,0.00579298]
[1736928492342,0.14312412,97493.0,97492.0,0.00579298]
[1736928492721,0.12703045,97493.0,97492.0,0.00579298]
[1736928492934,0.27703045,97493.0,97492.0,0.00279298]
[1736928493137,0.27703045,97493.0,97492.0,0.00479298]
[1736928493475,0.27703045,97493.0,97492.0,0.00279298]
[1736928493691,0.27703045,97493.0,97492.0,0.00579298]
[1736928494926,0.27703045,97493.0,97492.0,0.00479298]
[1736928495314,0.27703045,97493.0,97492.0,0.00579298]
[1736928495832,0.27703045,97493.0,97492.0,0.00479298]
[1736928496012,0.27703045,97493.0,97492.0,0.00279298]
[1736928496378,0.27703045,97493.0,97492.0,0.00479298]
[1736928496563,0.27703045,97493.0,97492.0,0.00179298]
[1736928496767,0.27703045,97493.0,97492.0,0.00279298]
[1736928496969,0.27703045,97493.0,97492.0,0.00479298]
[1736928497176,0.27703045,97493.0,97492.0,0.00279298]
[1736928497385,0.27703045,97493.0,97492.0,0.00479298]
[1736928498300,0.27703045,97493.0,97492.0,0.00379298]
[1736928498716,0.27703045,97493.0,97492.0,0.00479298]
[1736928499048,0.27703045,97493.0,97492.0,0.00379298]
[1736928499372,0.27703045,97493.0,97492.0,0.00479298]
[1736928499573,0.27703045,97493.0,97492.0,0.00279298]
[1736928499976,0.27703045,97493.0,97492.0,0.00479298]
[1736928502836,0.2931235,97493.0,97492.0,0.00479298]
[1736928503126,0.27703045,97493.0,97492.0,0.00479298]
[1736928515403,0.27703045,97493.0,97492.0,0.00379298]
[1736928515628,0.27703045,97493.0,97492.0,0.00179298]
[1736928516032,0.27703045,97493.0,97492.0,0.00379298]
[1736928516380,0.29312324,97493.0,97492.0,0.00179298]
[1736928517198,0.29312324,97493.0,97492.0,0.00379298]
[1736928517570,0.27703045,97493.0,97492.0,0.00479298]
[1736928518330,0.27703045,97493.0,97492.0,0.00279298]
[1736928518538,0.41498667,97493.0,97492.0,0.00279298]
[1736928518740,0.41498667,97493.0,97492.0,0.00479298]
[1736928518943,0.41498667,97493.0,97492.0,0.00279298]
[1736928519544,0.27703045,97493.0,97492.0,0.00279298]
[1736928519763,0.27703045,97493.0,97492.0,0.00479298]
[1736928520165,0.15073045,97493.0,97492.0,0.00279298]
[1736928520370,0.00073045,97493.0,97492.0,0.08289298]
[1736928520814,0.00073045,97493.0,97492.0,0.08389298]
[1736928521217,0.00073045,97493.0,97492.0,0.08289298]
[1736928521425,0.00073045,97493.0,97492.0,0.39248535]
[1736928521604,0.00073045,97493.0,97492.0,0.43698535]
[1736928522236,0.00073045,97493.0,97492.0,0.43898535]
[1736928522612,0.00073045,97493.0,97492.0,0.44698535]
[1736928523017,0.00073045,97493.0,97492.0,0.43898535]
[1736928523210,0.00073045,97493.0,97492.0,0.44798535]
[1736928523697,0.00073045,97493.0,97492.0,0.43598535]
[1736928523901,0.00073045,97493.0,97492.0,0.43998535]
[1736928524548,0.00073045,97493.0,97492.0,0.43598535]
[1736928524723,0.00073045,97493.0,97492.0,0.44898535]
[1736928526832,0.00073045,97493.0,97492.0,0.40248535]
[1736928527040,0.00073045,97493.0,97492.0,0.09389298]
[1736928528749,0.00073045,97493.0,97492.0,0.08089298]
[1736928528950,0.00073045,97493.0,97492.0,0.08989298]
[1736928529671,0.00073045,97493.0,97492.0,0.08089298]
[1736928530170,0.00073045,97493.0,97492.0,0.09289298]
[1736928530372,0.00073045,97493.0,97492.0,0.08489298]
[1736928530530,0.00073045,97493.0,97492.0,0.08989298]
[1736928530965,0.01681972,97493.0,97492.0,0.09289298]
[1736928531485,0.01681972,97493.0,97492.0,0.08989298]
[1736928532040,0.01681972,97493.0,97492.0,0.08489298]
[1736928532209,0.00073045,97493.0,97492.0,0.09289298]
[1736928532430,0.00073045,97493.0,97492.0,0.08489298]
[1736928532656,0.00073045,97493.0,97492.0,0.09389298]
[1736928533240,0.00073045,97493.0,97492.0,0.09789298]
[1736928533474,0.00073045,97493.0,97492.0,0.08089298]
[1736928533945,0.00073045,97493.0,97492.0,0.08989298]
[1736928534089,0.00073045,97493.0,97492.0,0.09289298]
[1736928534743,0.00073045,97493.0,97492.0,0.08989298]
[1736928534945,0.00073045,97493.0,97492.0,0.08089298]
[1736928535144,0.00073045,97493.0,97492.0,0.08489298]
[1736928535345,0.00073045,97493.0,97492.0,0.09289298]
[1736928536338,0.00073045,97493.0,97492.0,0.08489298]
[1736928536578,0.00073045,97493.0,97492.0,0.08989298]
[1736928536722,0.00073045,97493.0,97492.0,0.08389298]
[1736928536946,0.00073045,97493.0,97492.0,0.09189298]
[1736928537191,0.00073045,97493.0,97492.0,0.08889298]
[1736928537627,0.00073045,97493.0,97492.0,0.09289298]
[1736928538157,0.00073045,97493.0,97492.0,0.08889298]
[1736928538504,0.00073045,97493.0,97492.0,0.08389298]
[1736928538709,0.00073045,97493.0,97492.0,0.01379298]
[1736928538921,0.00073045,97493.0,97492.0,0.00479298]
[1736928539321,0.00073045,97493.0,97492.0,0.01379298]
[1736928539652,0.00073045,97493.0,97492.0,0.01079298]
[1736928539869,0.00073045,97493.0,97492.0,0.01379298]
[1736928540192,0.00073045,97493.0,97492.0,0.00479298]
[1736928540402,0.00073045,97493.0,97492.0,0.00179298]
[1736928540790,0.00073045,97493.0,97492.0,0.00479298]
[1736928540954,0.00073045,97493.0,97492.0,0.01379298]
[1736928541568,0.01682008,97493.0,97492.0,0.01379298]
[1736928542005,0.01682008,97493.0,97492.0,0.00479298]
[1736928542425,0.01682008,97493.0,97492.0,0.01379298]
[1736928542643,0.01682008,97493.0,97492.0,0.00479298]
[1736928542850,0.01682008,97493.0,97492.0,0.00179298]
[1736928543052,0.01682008,97493.0,97492.0,0.01079298]
[1736928543230,0.00073045,97493.0,97492.0,0.00179298]
[1736928543640,0.00073045,97493.0,97492.0,0.01479298]
[1736928543838,0.00073045,97493.0,97492.0,0.00579298]
[1736928544219,0.00073045,97493.0,97492.0,0.00179298]
[1736928544638,0.00073045,97493.0,97492.0,0.00579298]
[1736928545253,0.00073045,97493.0,97492.0,0.01479298]
[1736928545628,0.00073045,97493.0,97492.0,0.00579298]
[1736928545809,0.00073045,97493.0,97492.0,0.01479298]
[1736928546013,0.00073045,97493.0,97492.0,0.00179298]
[1736928546495,0.00073045,97493.0,97492.0,0.00579298]
[1736928547063,0.00073045,97493.0,97492.0,0.01079298]
[1736928547260,0.00073045,97493.0,97492.0,0.01479298]
[1736928547688,0.00073045,97493.0,97492.0,0.01079298]
[1736928548389,0.00073045,97493.0,97492.0,0.00179298]
[1736928548588,0.00073045,97493.0,97492.0,0.01079298]
[1736928548786,0.00073045,97493.0,97492.0,0.00179298]
[1736928549174,0.00073045,97493.0,97492.0,0.01479298]
[1736928549504,0.00073045,97493.0,97492.0,0.00579298]
[1736928549723,0.00073045,97493.0,97492.0,0.01079298]
[1736928549894,0.00073045,97493.0,97492.0,0.13689298]
[1736928550101,0.00073045,97493.0,97492.0,0.14191856]
[1736928550323,0.0168195,97493.0,97492.0,0.15091852]
[1736928550509,0.00073045,97493.0,97492.0,0.14691852]
[1736928550980,0.00073045,97493.0,97492.0,0.15191852]
[1736928551625,0.00073045,97493.0,97492.0,0.676439]
[1736928551826,0.00073045,97493.0,97492.0,0.65741346]
[1736928551942,0.00073045,97493.0,97492.0,0.66641346]
[1736928552143,0.00073045,97493.0,97492.0,0.66141346]
[1736928552349,0.00073045,97493.0,97492.0,0.65841346]
[1736928552544,0.00073045,97493.0,97492.0,0.66741346]
[1736928552952,0.00073045,97493.0,97492.0,0.66141346]
[1736928553152,0.00073045,97493.0,97492.0,0.47716443]
[1736928553561,0.00073045,97493.0,97492.0,1.02176443]
[1736928553761,0.00073045,97493.0,97492.0,1.02876443]
[1736928555589,0.00073045,97493.0,97492.0,1.01976443]
[1736928555787,0.00073045,97493.0,97492.0,1.02176443]
[1736928556039,0.00073045,97493.0,97492.0,1.01276443]
[1736928556253,0.00073045,97493.0,97492.0,1.01976443]
[1736928556447,0.00073045,97493.0,97492.0,1.02876443]
[1736928556655,0.00073045,97493.0,97492.0,1.01976443]
[1736928556975,0.00073045,97493.0,97492.0,1.02876443]
[1736928557435,0.00073045,97493.0,97492.0,1.02176443]
[1736928557578,0.00073045,97493.0,97492.0,1.02876443]
[1736928558165,0.00073045,97493.0,97492.0,1.01976443]
[1736928558364,0.00073045,97493.0,97492.0,0.97416443]
[1736928558590,0.00073045,97493.0,97492.0,0.98892443]
[1736928559246,0.00073045,97493.0,97492.0,0.99792443]
[1736928559453,0.00073045,97493.0,97492.0,0.97992443]
[1736928559786,0.00073045,97493.0,97492.0,0.43732443]
[1736928559969,0.00073045,97493.0,97492.0,0.10405298]
[1736928560340,0.00073045,97493.0,97492.0,0.09705298]
[1736928560537,0.00073045,97493.0,97492.0,0.10405298]
[1736928560756,0.00073045,97493.0,97492.0,0.02355298]
[1736928560947,0.00073045,97493.0,97492.0,0.01779298]
[1736928561587,0.00073045,97493.0,97492.0,0.00179298]
[1736928561789,0.00073045,97493.0,97492.0,0.01079298]
[1736928562429,0.00073045,97493.0,97492.0,0.01779298]
[1736928562639,0.00073045,97493.0,97492.0,0.00179298]
[1736928562880,0.00073045,97493.0,97492.0,0.00679298]
[1736928563079,0.00073045,97493.0,97492.0,0.01379298]
[1736928563268,0.00073045,97493.0,97492.0,0.00679298]
[1736928563470,0.00073045,97493.0,97492.0,0.00179298]
[1736928563780,0.00073045,97493.0,97492.0,0.01179298]
[1736928564383,0.00073045,97493.0,97492.0,0.00879298]
[1736928564810,0.00073045,97493.0,97492.0,0.00479298]
[1736928565013,0.00073045,97493.0,97492.0,0.01179298]
[1736928565422,0.00073045,97493.0,97492.0,0.00479298]
[1736928565642,0.00073045,97493.0,97492.0,0.01179298]
[1736928565843,0.00073045,97493.0,97492.0,0.00479298]
[1736928566093,0.01682085,97493.0,97492.0,0.00179298]
[1736928566274,0.01682085,97493.0,97492.0,0.01179298]
[1736928566587,0.01682085,97493.0,97492.0,0.00479298]
[1736928567384,0.01682085,97493.0,97492.0,0.00879298]
[1736928567599,0.01682085,97493.0,97492.0,0.01179298]
[1736928568383,0.01682085,97493.0,97492.0,0.00479298]
[1736928568825,0.01682085,97493.0,97492.0,0.01179298]
[1736928569022,0.01682085,97493.0,97492.0,0.00179298]
[1736928569271,0.01682085,97493.0,97492.0,0.00479298]
[1736928569478,0.01682085,97493.0,97492.0,0.01179298]
[1736928569688,0.01682085,97493.0,97492.0,0.00479298]
[1736928569864,0.01682085,97493.0,97492.0,0.00179298]
[1736928570090,0.01682085,97493.0,97492.0,0.01079298]
[1736928570474,0.01682085,97493.0,97492.0,0.01779298]
[1736928572044,0.01682085,97493.0,97492.0,0.01579298]
[1736928572251,0.01682085,97493.0,97492.0,0.00179298]
[1736928572438,0.01682085,97493.0,97492.0,0.00979298]
[1736928572846,0.01682085,97493.0,97492.0,0.00179298]
[1736928573231,0.01682085,97493.0,97492.0,0.00779298]
[1736928574989,0.0166974,97493.0,97492.0,0.00779298]
[1736928575135,0.0166974,97493.0,97492.0,0.00179298]
[1736928575505,0.0166974,97493.0,97492.0,0.00779298]
[1736928575935,0.0166974,97493.0,97492.0,0.00579298]
[1736928576309,0.0166974,97493.0,97492.0,0.00379298]
[1736928576511,0.0166974,97493.0,97492.0,0.00779298]
[1736928580326,0.000607,97493.0,97492.0,0.00779298]
[1736928581311,0.000607,97493.0,97492.0,0.00579298]
[1736928581516,0.000607,97493.0,97492.0,0.00879298]
[1736928582965,0.000607,97493.0,97492.0,0.00479298]
[1736928583403,0.000607,97493.0,97492.0,0.01179298]
[1736928584407,0.000607,97493.0,97492.0,0.00879298]
[1736928584689,0.000607,97493.0,97492.0,0.01179298]
[1736928585107,0.000607,97493.0,97492.0,0.00879298]
[1736928585606,0.000607,97493.0,97492.0,0.01179298]
[1736928593651,0.000607,97493.0,97492.0,0.00479298]
[1736928593859,0.000607,97493.0,97492.0,0.01179298]
[1736928594233,0.000607,97493.0,97492.0,0.00879298]
[1736928594447,0.000607,97493.0,97492.0,0.01179298]
[1736928594795,0.000607,97493.0,97492.0,0.00479298]
[1736928595010,0.000607,97493.0,97492.0,0.01179298]
[1736928595587,0.000607,97493.0,97492.0,0.00879298]
[1736928596001,0.000607,97493.0,97492.0,0.09039298]
[1736928596324,0.000607,97493.0,97492.0,0.08339298]
[1736928596596,0.000607,97493.0,97492.0,0.01179298]
[1736928596766,0.000607,97493.0,97492.0,0.00479298]
[1736928597186,0.000607,97493.0,97492.0,0.01079298]
[1736928597394,0.000607,97493.0,97492.0,0.00179298]
[1736928597590,0.000607,97493.0,97492.0,0.01479298]
[1736928597997,0.000607,97493.0,97492.0,0.01079298]
[1736928598353,0.000607,97493.0,97492.0,0.01479298]
[1736928599544,0.080807,97493.0,97492.0,0.01479298]
[1736928600551,0.128507,97493.0,97492.0,0.00579298]
[1736928600783,0.128507,97493.0,97492.0,0.01279298]
[1736928600990,0.128507,97493.0,97492.0,0.00879298]
[1736928601408,0.128507,97493.0,97492.0,0.01179298]
[1736928601581,0.128507,97493.0,97492.0,0.00479298]
[1736928601875,0.128507,97493.0,97492.0,0.00179298]
[1736928602271,0.128507,97493.0,97492.0,0.00479298]
[1736928602922,0.128507,97493.0,97492.0,0.01179298]
[1736928606231,0.14459826,97493.0,97492.0,0.01179298]
[1736928610368,0.01669826,97493.0,97492.0,0.01179298]
[1736928610767,0.000607,97493.0,97492.0,0.01179298]
[1736928612266,0.01669883,97493.0,97492.0,0.01179298]
[1736928612670,0.01669883,97493.0,97492.0,0.00879298]
[1736928613122,0.22184083,97493.0,97492.0,0.00179298]
[1736928613451,0.34924083,97493.0,97492.0,0.00679298]
[1736928613955,0.333149,97493.0,97492.0,0.00379298]
[1736928614092,0.333149,97493.0,97492.0,0.00779298]
[1736928614293,0.333149,97493.0,97492.0,0.00379298]
[1736928614529,0.333149,97493.0,97492.0,0.00179298]
[1736928614732,0.333149,97493.0,97492.0,0.00779298]
[1736928616917,0.34924068,97493.0,97492.0,0.00379298]
[1736928617119,0.34924068,97493.0,97492.0,0.00179298]
[1736928617321,0.34924068,97493.0,97492.0,0.00579298]
[1736928617526,0.34924068,97493.0,97492.0,0.00779298]
[1736928617931,0.34924068,97493.0,97492.0,0.00579298]
[1736928618134,0.34924068,97493.0,97492.0,0.00279298]
[1736928618542,0.44924068,97493.0,97492.0,0.00279298]
[1736928618750,0.59924068,97493.0,97492.0,0.00179298]
[1736928618956,0.59924068,97493.0,97492.0,0.00279298]
[1736928619825,0.59924068,97493.0,97492.0,0.00579298]
[1736928619987,0.59924068,97493.0,97492.0,0.00279298]
[1736928620331,0.59924068,97493.0,97492.0,0.00179298]
[1736928632114,0.49924068,97493.0,97492.0,0.00179298]
[1736928635640,0.42074068,97493.0,97492.0,0.00179298]
[1736928640559,0.000607,97493.0,97492.0,0.00179298]
[1736928642395,0.000607,97493.0,97492.0,0.00279298]
[1736928642598,0.000607,97493.0,97492.0,0.00179298]
[1736928643064,0.000607,97493.0,97492.0,0.00979298]
[1736928643896,0.000607,97493.0,97492.0,0.00179298]
[1736928644103,0.000607,97493.0,97492.0,0.01179298]
[1736928649166,0.205749,97493.0,97492.0,0.01179298]
[1736928649369,0.205749,97493.0,97492.0,0.00179298]
[1736928649787,0.205749,97493.0,97492.0,0.01179298]
[1736928650021,0.205749,97493.0,97492.0,0.00379298]
[1736928650229,0.205749,97493.0,97492.0,0.00179298]
[1736928650629,0.287949,97493.0,97492.0,0.00979298]
[1736928651032,0.387949,97493.0,97492.0,0.00979298]
[1736928651241,0.387949,97493.0,97492.0,0.01179298]
[1736928651584,0.410949,97493.0,97492.0,0.01179298]
[1736928652061,0.608349,97493.0,97492.0,0.01179298]
[1736928652269,0.708349,97493.0,97492.0,0.01179298]
[1736928652503,0.708349,97493.0,97492.0,0.00379298]
[1736928652732,0.708349,97493.0,97492.0,0.00879298]
[1736928653095,0.708349,97493.0,97492.0,0.00179298]
[1736928654245,0.35,97491.0,97490.0,9.8e-07]
[1736928654447,0.707766,97482.0,97481.0,0.00184161]
[1736928655980,0.72386171,97482.0,97481.0,0.00184161]
[1736928656385,0.72786171,97482.0,97481.0,0.00184161]
[1736928657106,0.72586171,97482.0,97481.0,0.00184161]
[1736928657357,0.90969201,97482.0,97481.0,0.00184161]
[1736928657513,0.92778685,97482.0,97481.0,0.00184161]
[1736928657715,0.455189,97471.0,97470.0,0.03431801]
[1736928657924,0.566149,97471.0,97470.0,0.034466]
[1736928658287,0.58224483,97471.0,97470.0,0.034466]
[1736928658963,0.58224483,97471.0,97470.0,0.035466]
[1736928659774,0.58324483,97471.0,97470.0,0.035466]
[1736928662808,0.567149,97471.0,97470.0,0.035466]
[1736928663040,0.356189,97471.0,97470.0,0.035466]
[1736928663474,0.356189,97471.0,97470.0,0.039666]
[1736928663912,0.355189,97471.0,97470.0,0.039666]
[1736928664767,0.355189,97471.0,97470.0,0.038666]
[1736928665194,0.355189,97471.0,97470.0,0.039666]
[1736928665804,0.37128462,97471.0,97470.0,0.039666]
[1736928667780,0.205189,97471.0,97470.0,0.039666]
[1736928668409,0.205189,97471.0,97470.0,0.038666]
[1736928668837,0.205189,97471.0,97470.0,0.039666]
[1736928669016,0.205189,97471.0,97470.0,0.04052]
[1736928669227,0.20698241,97471.0,97470.0,0.04052]
[1736928669434,0.22307756,97471.0,97470.0,0.04052]
[1736928669581,0.01788856,97471.0,97470.0,0.04052]
[1736928669806,0.00179341,97471.0,97470.0,0.04052]
[1736928670023,0.00179341,97471.0,97470.0,0.17152]
[1736928670476,0.00179341,97471.0,97470.0,0.17254586]
[1736928671101,0.00179341,97471.0,97470.0,0.52024586]
[1736928671280,0.00179341,97471.0,97470.0,0.51922]
[1736928671485,0.00179341,97471.0,97470.0,0.52122]
[1736928671682,0.00179341,97471.0,97470.0,0.51922]
[1736928672041,0.00179341,97471.0,97470.0,0.52822]
[1736928672451,0.00179341,97471.0,97470.0,0.54736987]
[1736928672662,0.00179341,97471.0,97470.0,0.55136987]
[1736928673357,0.00179341,97471.0,97470.0,0.54736987]
[1736928673543,0.00179341,97471.0,97470.0,0.55236987]
[1736928676506,0.00179341,97471.0,97470.0,0.54736987]
[1736928676926,0.00179341,97471.0,97470.0,0.55336987]
[1736928677134,0.00179341,97471.0,97470.0,0.54436987]
[1736928677585,0.00179341,97471.0,97470.0,0.55336987]
[1736928680322,0.01788475,97471.0,97470.0,0.55336987]
[1736928682092,0.00179341,97471.0,97470.0,0.55336987]
[1736928685292,0.01788478,97471.0,97470.0,0.55336987]
[1736928685455,0.00179341,97471.0,97470.0,0.55336987]
[1736928686108,0.00179341,97471.0,97470.0,0.70336987]
[1736928686311,0.00179341,97471.0,97470.0,0.80336987]
[1736928688391,0.00179341,97471.0,97470.0,1.34796987]
[1736928690137,0.000607,97493.0,97473.0,0.1]
[1736928690343,0.000607,97493.0,97476.0,0.023]
[1736928690535,0.000607,97493.0,97476.0,0.02402562]
[1736928690831,0.0160903,97489.0,97478.0,0.173]
[1736928691030,0.0160903,97489.0,97488.0,0.228153]
[1736928692140,0.0160903,97489.0,97488.0,0.236153]
[1736928693087,0.0160903,97489.0,97488.0,0.231153]
[1736928693374,0.0160903,97489.0,97488.0,0.236153]
[1736928693868,0.0160903,97489.0,97488.0,0.240153]
[1736928694270,0.0160903,97489.0,97488.0,0.565853]
[1736928694865,0.000607,97493.0,97490.0,0.205148]
[1736928695100,0.000607,97493.0,97492.0,0.205145]
[1736928695328,0.000607,97493.0,97492.0,0.228145]
[1736928696317,0.000607,97493.0,97492.0,0.237145]
[1736928696526,0.000607,97493.0,97492.0,0.241145]
[1736928696721,0.000607,97493.0,97492.0,0.248145]
[1736928696919,0.000607,97493.0,97492.0,0.26729487]
[1736928697124,0.000607,97493.0,97492.0,0.26329487]
[1736928698265,0.000607,97493.0,97492.0,0.24729487]
[1736928698424,0.000607,97493.0,97492.0,0.25429487]
[1736928698631,0.000607,97493.0,97492.0,0.24729487]
[1736928699053,0.000607,97493.0,97492.0,0.25829487]
[1736928699256,0.000607,97493.0,97492.0,0.24929487]
[1736928699662,0.000607,97493.0,97492.0,0.25629487]
[1736928700096,0.000607,97493.0,97492.0,0.26029487]
[1736928700739,0.000607,97493.0,97492.0,0.25629487]
[1736928701143,0.000607,97493.0,97492.0,0.26029487]
[1736928701763,0.000607,97493.0,97492.0,0.26929487]
[1736928701994,0.000607,97493.0,97492.0,0.25129487]
[1736928702368,0.01669614,97493.0,97492.0,0.26029487]
[1736928702996,0.000607,97493.0,97492.0,0.26029487]
[1736928705126,0.000607,97493.0,97492.0,0.25129487]
[1736928705322,0.000607,97493.0,97492.0,0.26029487]
[1736928705768,0.000607,97493.0,97492.0,0.25629487]
[1736928705967,0.000607,97493.0,97492.0,0.26029487]
[1736928706375,0.01669622,97493.0,97492.0,0.58599487]
[1736928707201,0.000607,97493.0,97492.0,0.58599487]
[1736928711250,0.0166962,97493.0,97492.0,0.58599487]
[1736928712603,0.0166962,97493.0,97492.0,0.57699487]
[1736928713322,0.0166962,97493.0,97492.0,0.58199487]
[1736928713679,0.0166962,97493.0,97492.0,0.58599487]
[1736928714831,0.0166962,97493.0,97492.0,0.57699487]
[1736928715214,0.0166962,97493.0,97492.0,0.58199487]
[1736928715415,0.0166962,97493.0,97492.0,0.57299487]
[1736928715653,0.0166962,97493.0,97492.0,0.58599487]
[1736928716022,0.0166962,97493.0,97492.0,0.57299487]
[1736928716217,0.0166962,97493.0,97492.0,0.58199487]
[1736928716412,0.0166962,97493.0,97492.0,0.58699487]
[1736928716619,0.000607,97493.0,97492.0,0.57799487]
[1736928716825,0.000607,97493.0,97492.0,0.72016408]
[1736928718242,0.000607,97493.0,97492.0,0.71516408]
[1736928718539,0.000607,97493.0,97492.0,0.72416408]
[1736928718859,0.000607,97493.0,97492.0,0.71116408]
[1736928719043,0.000607,97493.0,97492.0,0.72016408]
[1736928719245,0.000607,97493.0,97492.0,0.71116408]
[1736928719649,0.000607,97493.0,97492.0,0.72416408]
[1736928720178,0.00048352,97493.0,97492.0,0.72016408]
[1736928720511,0.00048352,97493.0,97492.0,0.71116408]
[1736928721384,0.00048352,97493.0,97492.0,0.71516408]
[1736928721739,0.00048352,97493.0,97492.0,0.72416408]
[1736928721938,0.00048352,97493.0,97492.0,0.72016408]
[1736928722180,0.00048352,97493.0,97492.0,0.71116408]
[1736928722353,0.00048352,97493.0,97492.0,0.71616408]
[1736928722552,0.00048352,97493.0,97492.0,0.72516408]
[1736928725780,0.01657229,97493.0,97492.0,0.72516408]
[1736928725986,0.00048352,97493.0,97492.0,0.72516408]
[1736928726198,0.00048352,97493.0,97492.0,1.06604057]
[1736928727827,0.00048352,97493.0,97492.0,1.06104057]
[1736928728154,0.00048352,97493.0,97492.0,1.06783355]
[1736928728271,0.00048352,97493.0,97492.0,0.92966434]
[1736928728665,0.00048352,97493.0,97492.0,0.71951934]
[1736928728837,0.00048352,97493.0,97492.0,0.69251934]
[1736928728990,0.00048352,97493.0,97492.0,0.70151934]
[1736928729423,0.00048352,97493.0,97492.0,0.69251934]
[1736928729597,0.00048352,97493.0,97492.0,0.69651934]
[1736928729807,0.00048352,97493.0,97492.0,0.35564285]
[1736928730063,0.00048352,97493.0,97492.0,0.34664285]
[1736928730210,0.00048352,97493.0,97492.0,0.02094285]
[1736928731310,0.00048352,97493.0,97492.0,0.02294285]
[1736928731494,0.00048352,97493.0,97492.0,0.03194285]
[1736928731695,0.00048352,97493.0,97492.0,0.02294285]
[1736928731896,0.00048352,97493.0,97492.0,0.02094285]
[1736928732132,0.00048352,97493.0,97492.0,0.02994285]
[1736928732311,0.01657265,97493.0,97492.0,0.02394285]
[1736928732682,0.01657265,97493.0,97492.0,0.02994285]
[1736928732885,0.00048352,97493.0,97492.0,0.02994285]
[1736928733042,0.00048352,97493.0,97492.0,0.03394285]
[1736928734360,0.00048352,97493.0,97492.0,0.02494285]
[1736928734544,0.00048352,97493.0,97492.0,0.02094285]
[1736928734791,0.00048352,97493.0,97492.0,0.03394285]
[1736928735511,0.00048352,97493.0,97492.0,0.02494285]
[1736928735712,0.00048352,97493.0,97492.0,0.02094285]
[1736928735867,0.00048352,97493.0,97492.0,0.02794285]
[1736928736076,0.00048352,97493.0,97492.0,0.02294285]
[1736928736493,0.00048352,97493.0,97492.0,0.03194285]
[1736928737883,0.00048352,97493.0,97492.0,0.02294285]
[1736928738137,0.00048352,97493.0,97492.0,0.02994285]
[1736928738342,0.00048352,97493.0,97492.0,0.02094285]
[1736928738569,0.00048352,97493.0,97492.0,0.03394285]
[1736928738992,0.00048352,97493.0,97492.0,0.02094285]
[1736928739218,0.00048352,97493.0,97492.0,0.02794285]
[1736928739516,0.0165729,97493.0,97492.0,0.02994285]
[1736928739954,0.0165729,97493.0,97492.0,0.02794285]
[1736928740178,0.0165729,97493.0,97492.0,0.03194285]
[1736928740890,0.0165729,97493.0,97492.0,0.02494285]
[1736928741106,0.0165729,97493.0,97492.0,0.03194285]
[1736928741605,0.0165729,97493.0,97492.0,0.02794285]
[1736928742727,0.0165729,97493.0,97492.0,0.02994285]
[1736928743292,0.00048352,97493.0,97492.0,0.02994285]
[1736928743916,0.07858352,97493.0,97492.0,0.02994285]
[1736928744892,0.07858352,97493.0,97492.0,0.02294285]
[1736928745327,0.07858352,97493.0,97492.0,0.00679298]
[1736928745540,0.07858352,97493.0,97492.0,0.00179298]
[1736928745720,0.07858352,97493.0,97492.0,0.00279298]
[1736928746058,0.07858352,97493.0,97492.0,0.00779298]
[1736928746654,0.07858352,97493.0,97492.0,0.00679298]
[1736928746856,0.09467345,97493.0,97492.0,0.00779298]